bitfinex/quotes_SOLUSD_20240603
["timestamp","ask_amount","ask_price","bid_price","bid_amount"]
[1717426008373,70.06411904,163.82,163.81,0.2]
[1717426008567,69.72411904,163.82,163.81,0.2]
[1717426008782,70.06411904,163.82,163.81,0.2]
[1717426009080,9.89411904,163.82,163.81,0.2]
[1717426009277,9.72411904,163.82,163.81,0.2]
[1717426009479,69.72411904,163.82,163.81,0.2]
[1717426009682,70.06411904,163.82,163.81,0.2]
[1717426009886,62.5985,163.82,163.81,0.2]
[1717426010088,2.2585,163.82,163.81,0.2]
[1717426010397,81.44,163.84,163.81,0.2]
[1717426010398,2.2584,163.83,163.81,0.2]
[1717426011098,2.2585,163.82,163.81,0.2]
[1717426011291,69.72411904,163.82,163.81,0.2]
[1717426011495,62.2585,163.82,163.81,0.2]
[1717426012694,91.50411904,163.82,163.81,0.2]
[1717426013311,91.50411904,163.82,163.71,2.4599]
[1717426013312,2.2599,163.72,163.71,0.2]
[1717426013477,2.2595,163.75,163.71,0.2]
[1717426013683,81.44,163.77,163.71,0.2]
[1717426013989,3.94737641,163.77,163.71,0.2]
[1717426014178,60.0,163.79,163.71,0.2]
[1717426014376,7.46561904,163.78,163.71,2.46]
[1717426014800,2.259,163.79,163.71,2.46]
[1717426015003,7.46561904,163.78,163.74,2.5126]
[1717426015504,9.72441904,163.8,163.74,2.5126]
[1717426016011,2.2589,163.79,163.74,2.5126]
[1717426016211,2.2588,163.81,163.74,2.5126]
[1717426016382,9.72441904,163.81,163.74,4.7722]
[1717426016588,2.2588,163.8,163.74,2.5126]
[1717426017807,2.259,163.79,163.74,2.5126]
[1717426018008,60.0,163.79,163.71,0.2]
[1717426018218,7.46561904,163.78,163.71,0.2]
[1717426018394,60.0,163.77,163.71,0.2]
[1717426018588,7.63561904,163.78,163.71,0.2]
[1717426018786,7.46561904,163.78,163.71,0.2]
[1717426018988,2.2591,163.78,163.71,2.4599]
[1717426019432,9.72461904,163.79,163.72,2.2599]
[1717426020093,2.2591,163.78,163.72,2.2599]
[1717426020304,7.46561904,163.79,163.71,0.2]
[1717426020508,2.2587,163.81,163.74,2.2596]
[1717426020891,81.44,163.83,163.73,2.2597]
[1717426020892,2.2588,163.8,163.73,2.2597]
[1717426021086,60.0,163.81,163.73,2.2597]
[1717426021293,2.259,163.79,163.72,2.2599]
[1717426021691,2.2591,163.78,163.71,0.2]
[1717426021890,9.72461904,163.79,163.72,2.2599]
[1717426022103,9.72461904,163.79,163.71,0.2]
[1717426022325,21.44,163.83,163.75,2.2594]
[1717426022524,2.2588,163.8,163.74,2.2596]
[1717426023198,2.2586,163.82,163.71,0.2]
[1717426023386,2.2587,163.81,163.75,2.2594]
[1717426023588,2.2591,163.78,163.73,2.5126]
[1717426023908,93.42251904,163.83,163.72,2.2599]
[1717426023909,2.2592,163.77,163.72,2.5126]
[1717426024099,2.2591,163.78,163.72,4.7725]
[1717426024423,2.259,163.79,163.72,2.5126]
[1717426024586,2.259,163.79,163.73,2.2597]
[1717426024820,2.2597,163.74,163.71,0.2]
[1717426025318,60.0,163.74,163.71,0.2]
[1717426025654,2.2599,163.72,163.71,0.2]
[1717426026825,8.3399,163.72,163.71,0.2]
[1717426027028,32.23240793,163.72,163.71,0.2]
[1717426027228,21.01930793,163.72,163.71,0.2]
[1717426027548,36.83890793,163.72,163.71,0.2]
[1717426028058,30.05910793,163.72,163.71,0.2]
[1717426028425,21.01930793,163.72,163.71,0.2]
[1717426028625,44.33780793,163.72,163.71,0.2]
[1717426029244,53.37760793,163.72,163.71,0.2]
[1717426029448,66.7806,163.7,163.69,0.3497155]
[1717426029754,102.59460793,163.7,163.69,0.3497155]
[1717426030137,76.63420793,163.7,163.69,0.3497155]
[1717426030331,87.93520793,163.7,163.69,0.3497155]
[1717426030526,81.15460793,163.7,163.69,0.3497155]
[1717426030974,96.50030793,163.7,163.69,0.3497155]
[1717426031135,2.261,163.64,163.62,0.8208826]
[1717426031467,2.2611,163.63,163.62,0.8208826]
[1717426031833,2.261,163.64,163.62,0.8208826]
[1717426033156,2.2609,163.65,163.62,0.8208826]
[1717426034356,7.81950793,163.69,163.62,0.8208826]
[1717426034563,67.81950793,163.69,163.62,0.8208826]
[1717426034774,2.2607,163.67,163.62,0.8208826]
[1717426035141,60.0,163.67,163.62,0.8208826]
[1717426035337,60.0,163.65,163.62,0.8208826]
[1717426035566,2.2609,163.65,163.62,0.8208826]
[1717426036081,10.08020793,163.66,163.62,0.8208826]
[1717426036443,7.81950793,163.66,163.62,0.8208826]
[1717426036664,2.261,163.64,163.62,0.8208826]
[1717426036971,2.2609,163.65,163.62,0.8208826]
[1717426037172,2.2611,163.63,163.62,0.8208826]
[1717426037379,2.2609,163.65,163.62,0.8208826]
[1717426038070,7.81950793,163.66,163.62,0.8208826]
[1717426038242,10.08030793,163.66,163.62,0.8208826]
[1717426038442,7.81950793,163.66,163.62,0.8208826]
[1717426038767,70.08030793,163.66,163.62,0.8208826]
[1717426039285,10.08030793,163.66,163.62,0.8208826]
[1717426039567,7.81950793,163.66,163.62,0.8208826]
[1717426039772,7.81950793,163.66,163.62,5.5947826]
[1717426039976,2.2603,163.69,163.63,4.7736]
[1717426040168,2.2605,163.68,163.63,2.5126]
[1717426040347,2.2605,163.68,163.62,0.8208826]
[1717426040549,60.0,163.68,163.62,0.8208826]
[1717426040777,67.81950793,163.68,163.62,0.8208826]
[1717426040948,62.2608,163.66,163.62,0.8208826]
[1717426041278,10.08050793,163.65,163.62,0.8208826]
[1717426041779,7.81950793,163.65,163.62,0.8208826]
[1717426042772,10.08040793,163.65,163.62,0.8208826]
[1717426043286,7.81950793,163.65,163.62,0.8208826]
[1717426044250,10.08040793,163.65,163.62,0.8208826]
[1717426044973,62.261,163.64,163.62,0.8208826]
[1717426045178,6.0641,163.63,163.62,0.8208826]
[1717426045352,68.4952,163.63,163.62,0.8208826]
[1717426045660,106.09160793,163.63,163.62,0.8208826]
[1717426045864,92.52460793,163.63,163.62,0.8208826]
[1717426046282,92.52460793,163.63,163.58,0.03802037]
[1717426046283,62.2617,163.59,163.58,0.03802037]
[1717426046479,62.6017,163.59,163.58,0.03802037]
[1717426047100,4.22898152,163.6,163.58,0.03802037]
[1717426047892,5.61688752,163.62,163.58,0.03802037]
[1717426048103,60.0,163.61,163.58,0.03802037]
[1717426048473,7.58456904,163.62,163.58,0.03802037]
[1717426049279,89.02456904,163.67,163.58,2.55062037]
[1717426049677,67.58456904,163.67,163.58,2.55062037]
[1717426049877,2.2607,163.66,163.58,2.55062037]
[1717426050087,67.58456904,163.67,163.58,2.55062037]
[1717426050592,67.58456904,163.67,163.6,2.2615]
[1717426050764,5.594782,163.69,163.61,2.2614]
[1717426050964,60.0,163.66,163.58,0.03802037]
[1717426051187,60.0,163.64,163.58,0.03802037]
[1717426051582,60.0,163.62,163.58,0.03802037]
[1717426051766,2.2616,163.6,163.58,0.03802037]
[1717426051962,60.0,163.62,163.58,0.03802037]
[1717426052162,2.2614,163.61,163.58,0.03802037]
[1717426052480,60.0,163.62,163.58,0.03802037]
[1717426052790,69.84556904,163.64,163.58,0.03802037]
[1717426052986,62.2608,163.66,163.58,2.55062037]
[1717426053165,60.0,163.66,163.59,2.2617]
[1717426053367,2.2609,163.65,163.58,4.81242037]
[1717426053610,62.2607,163.66,163.58,4.81242037]
[1717426054076,60.0,163.66,163.59,2.2617]
[1717426054279,60.0,163.68,163.58,4.81242037]
[1717426054496,60.0,163.68,163.58,2.55062037]
[1717426054694,69.84486904,163.69,163.62,2.2612]
[1717426054934,60.0,163.69,163.62,2.2612]
[1717426055227,18.9162,163.7,163.58,2.55062037]
[1717426055228,60.0,163.66,163.58,2.55062037]
[1717426055399,62.2611,163.64,163.58,2.55062037]
[1717426055604,60.0,163.64,163.58,2.55062037]
[1717426055815,60.0,163.64,163.58,0.03802037]
[1717426056125,62.2609,163.66,163.58,0.03802037]
[1717426056299,2.2609,163.65,163.58,2.29982037]
[1717426056499,60.0,163.66,163.58,0.03802037]
[1717426056705,60.0,163.68,163.58,0.03802037]
[1717426057211,62.2608,163.66,163.59,2.2617]
[1717426057398,2.2608,163.66,163.59,2.2617]
[1717426057603,60.0,163.64,163.58,0.03802037]
[1717426057905,69.84536904,163.66,163.59,2.2617]
[1717426058098,67.58456904,163.66,163.58,0.03802037]
[1717426058295,2.261,163.64,163.58,2.29982037]
[1717426058936,2.261,163.65,163.58,0.03802037]
[1717426059136,2.2611,163.64,163.58,0.03802037]
[1717426059299,2.2612,163.63,163.58,0.03802037]
[1717426059501,2.261,163.64,163.58,2.55062037]
[1717426059720,2.261,163.64,163.58,4.81242037]
[1717426059925,7.58456904,163.66,163.6,2.2616]
[1717426060131,9.84536904,163.66,163.58,2.55062037]
[1717426060423,9.84536904,163.66,163.59,2.2617]
[1717426060933,2.2608,163.66,163.59,2.2617]
[1717426061157,4.5244,163.68,163.58,2.55062037]
[1717426061336,60.0,163.69,163.58,2.55062037]
[1717426061641,2.2607,163.66,163.6,2.2615]
[1717426061930,67.58456904,163.69,163.58,2.55062037]
[1717426062299,2.2606,163.68,163.61,2.2614]
[1717426062523,2.2606,163.68,163.62,2.2612]
[1717426062698,9.84496904,163.69,163.62,2.2612]
[1717426062898,2.2604,163.69,163.63,2.2611]
[1717426063101,9.0469,163.7,163.63,2.2611]
[1717426063313,2.2604,163.69,163.63,2.2611]
[1717426063531,2.26,163.72,163.66,2.2606]
[1717426063730,0.2,163.74,163.61,7.0354]
[1717426064529,60.0,163.71,163.62,2.2612]
[1717426064711,2.2607,163.66,163.61,2.5126]
[1717426064917,0.17,163.7,163.62,2.2612]
[1717426065113,67.58456904,163.71,163.62,2.2612]
[1717426065114,60.0,163.71,163.62,2.2613]
[1717426065625,60.0,163.71,163.61,2.5126]
[1717426065809,2.2605,163.68,163.61,2.5126]
[1717426066420,2.2605,163.68,163.62,2.2613]
[1717426066940,2.2603,163.69,163.62,2.2613]
[1717426067510,2.2603,163.69,163.63,2.2611]
[1717426068111,2.2602,163.7,163.63,2.2611]
[1717426068326,2.2601,163.71,163.61,2.5126]
[1717426068547,2.2601,163.71,163.65,2.2609]
[1717426069113,81.44,163.73,163.66,2.2607]
[1717426069311,2.26,163.72,163.65,2.2608]
[1717426069635,2.2598,163.73,163.62,4.5226]
[1717426069825,6.49084407,163.74,163.63,4.5222]
[1717426070021,6.49084407,163.74,163.69,2.2603]
[1717426070233,0.2,163.74,163.7,2.5126]
[1717426070630,0.2,163.74,163.71,2.5126]
[1717426070839,0.2,163.74,163.72,18.5501]
[1717426071140,0.2,163.74,163.73,2.5126]
[1717426072835,0.2,163.74,163.73,20.4254]
[1717426074412,0.2,163.74,163.73,4.7724]
[1717426075226,0.2,163.74,163.73,19.884]
[1717426075427,0.2,163.74,163.73,2.5126]
[1717426075736,0.2,163.74,163.72,2.2599]
[1717426076219,0.2,163.74,163.73,2.2598]
[1717426076619,0.2,163.74,163.7,2.5126]
[1717426076829,0.2,163.74,163.69,2.2603]
[1717426077226,0.2,163.74,163.66,2.5126]
[1717426077428,0.2,163.74,163.69,2.2603]
[1717426077821,2.4596,163.74,163.68,2.2604]
[1717426078037,0.2,163.74,163.7,2.2602]
[1717426078342,0.2,163.74,163.68,2.2604]
[1717426079217,0.2,163.74,163.69,2.2603]
[1717426079630,0.2,163.74,163.7,2.2601]
[1717426079833,0.2,163.74,163.67,2.5126]
[1717426080035,0.2,163.74,163.7,2.2601]
[1717426081033,0.2,163.74,163.71,2.26]
[1717426081445,0.2,163.74,163.67,2.5126]
[1717426081655,0.2,163.74,163.69,2.2603]
[1717426081862,0.2,163.74,163.67,2.2606]
[1717426082159,21.44,163.72,163.63,2.5126]
[1717426082320,2.2606,163.68,163.62,2.2613]
[1717426082762,85.43404263,163.72,163.59,2.5126]
[1717426082763,2.2603,163.69,163.63,2.2611]
[1717426083322,85.43404263,163.72,163.59,2.5126]
[1717426083323,2.2605,163.68,163.62,2.2613]
[1717426083744,23.7004,163.69,163.62,2.2612]
[1717426084126,21.44,163.69,163.63,2.2611]
[1717426084952,21.44,163.69,163.62,2.2613]
[1717426084953,23.7004,163.69,163.62,2.2613]
[1717426085134,2.2605,163.68,163.62,2.2613]
[1717426085752,2.2609,163.65,163.58,2.29972037]
[1717426086059,2.261,163.64,163.58,2.29972037]
[1717426086222,2.2609,163.65,163.58,2.29972037]
[1717426086642,2.261,163.64,163.58,2.29972037]
[1717426086845,2.2609,163.65,163.59,2.2617]
[1717426087050,2.2609,163.65,163.58,2.29982037]
[1717426088448,2.261,163.64,163.58,2.29982037]
[1717426088841,2.261,163.64,163.58,0.03802037]
[1717426089060,60.0,163.64,163.58,0.03802037]
[1717426089258,2.2615,163.61,163.58,0.03802037]
[1717426089468,60.0,163.62,163.58,0.03802037]
[1717426089774,66.4819,163.62,163.58,0.03802037]
[1717426090347,60.0,163.62,163.58,0.03802037]
[1717426090547,6.4819,163.61,163.58,0.03802037]
[1717426090768,2.2617,163.6,163.58,0.03802037]
[1717426090972,6.6475,163.6,163.58,0.03802037]
[1717426091142,8.9092,163.59,163.58,0.03802037]
[1717426091561,9.2492,163.59,163.58,0.03802037]
[1717426092059,24.3733,163.59,163.58,0.03802037]
[1717426092372,24.5433,163.59,163.58,0.03802037]
[1717426093075,9.2492,163.59,163.58,0.03802037]
[1717426093273,8.9092,163.59,163.58,0.03802037]
[1717426094374,9.2492,163.59,163.58,0.03802037]
[1717426095065,9.0792,163.59,163.58,0.03802037]
[1717426096279,9.2492,163.59,163.58,0.03802037]
[1717426096775,13.7727,163.59,163.58,0.03802037]
[1717426096990,43.19396904,163.59,163.58,0.03802037]
[1717426097450,31.88526904,163.59,163.58,0.03802037]
[1717426097652,16.49376904,163.59,163.58,0.03802037]
[1717426097858,9.84626904,163.59,163.58,0.03802037]
[1717426098354,7.58456904,163.59,163.58,0.03802037]
[1717426098556,81.44,163.64,163.58,0.03802037]
[1717426098879,7.58456904,163.65,163.59,2.2616]
[1717426099051,7.58456904,163.65,163.6,2.5126]
[1717426099249,21.44,163.68,163.62,2.2613]
[1717426099670,21.44,163.68,163.6,2.5126]
[1717426099869,60.0,163.7,163.63,2.2611]
[1717426099870,2.2602,163.7,163.63,2.2611]
[1717426100283,23.7,163.71,163.64,2.261]
[1717426100451,60.2,163.74,163.6,2.5126]
[1717426100452,60.2,163.74,163.65,2.2609]
[1717426100651,60.2,163.74,163.6,2.5126]
[1717426100877,2.2603,163.69,163.6,2.5126]
[1717426101252,2.2602,163.7,163.63,2.2611]
[1717426101448,7.58456904,163.73,163.67,2.2605]
[1717426101668,2.2599,163.72,163.64,2.2609]
[1717426101874,2.2599,163.72,163.65,2.2608]
[1717426102059,2.2598,163.73,163.66,2.2607]
[1717426102265,2.26,163.72,163.64,2.2609]
[1717426102578,60.2,163.74,163.6,2.5126]
[1717426102579,60.0,163.71,163.6,2.5126]
[1717426102756,2.2602,163.7,163.62,2.2612]
[1717426102955,7.58456904,163.69,163.62,2.2612]
[1717426103260,60.0,163.63,163.58,0.03802037]
[1717426103468,2.2617,163.59,163.58,0.03802037]
[1717426103664,62.2617,163.59,163.58,0.03802037]
[1717426103956,11.142047,163.59,163.58,0.03802037]
[1717426104279,60.0,163.61,163.58,0.03802037]
[1717426104579,6.2606,163.63,163.58,0.03802037]
[1717426104760,2.5126,163.62,163.58,0.03802037]
[1717426105078,66.2606,163.67,163.58,0.03802037]
[1717426105387,9.302,163.66,163.58,0.03802037]
[1717426105554,11.5628,163.66,163.58,0.03802037]
[1717426105754,2.2607,163.67,163.59,2.2616]
[1717426105968,2.2608,163.66,163.59,2.2616]
[1717426106255,2.2609,163.65,163.58,0.03802037]
[1717426106559,2.2609,163.65,163.58,2.29982037]
[1717426106955,11.3126,163.68,163.58,0.03802037]
[1717426107155,2.2608,163.66,163.59,2.2617]
[1717426107350,11.3126,163.68,163.58,2.55062037]
[1717426107588,2.2607,163.67,163.61,2.2614]
[1717426108082,2.2604,163.69,163.61,2.2614]
[1717426108249,2.2604,163.69,163.62,2.2613]
[1717426108654,2.2603,163.7,163.63,2.2611]
[1717426108876,2.2603,163.7,163.64,2.261]
[1717426109079,2.2601,163.71,163.64,2.261]
[1717426109658,2.2599,163.72,163.65,2.2608]
[1717426109981,6.7834,163.72,163.65,2.2608]
[1717426110183,4.5234,163.72,163.65,2.2608]
[1717426110389,4.5234,163.72,163.66,2.2607]
[1717426110686,2.26,163.72,163.62,4.5225]
[1717426110981,2.2599,163.72,163.66,2.2607]
[1717426111385,2.2599,163.72,163.65,2.2608]
[1717426111678,6.7832,163.73,163.62,4.5226]
[1717426111897,4.5234,163.73,163.62,4.5226]
[1717426112097,0.2,163.74,163.62,4.5226]
[1717426112295,9.246,163.74,163.62,4.5226]
[1717426112592,8.746,163.74,163.62,4.5226]
[1717426113091,2.2598,163.73,163.66,2.2607]
[1717426113786,2.2596,163.75,163.67,17.9637]
[1717426113968,60.0,163.79,163.68,2.2604]
[1717426113969,2.2597,163.74,163.68,2.2604]
[1717426114388,2.2598,163.73,163.67,20.2243]
[1717426114771,2.2596,163.75,163.67,17.9637]
[1717426115210,7.1243,163.76,163.67,17.9637]
[1717426115366,2.2593,163.77,163.71,2.26]
[1717426115566,2.2593,163.77,163.7,2.2601]
[1717426115787,2.259,163.79,163.73,2.2597]
[1717426116094,2.2589,163.79,163.73,2.2597]
[1717426116665,2.2588,163.8,163.74,2.2596]
[1717426116865,64.7168,163.84,163.75,2.2595]
[1717426117079,64.7168,163.84,163.74,2.2596]
[1717426117266,2.2593,163.77,163.71,2.26]
[1717426117489,2.2588,163.8,163.68,20.0]
[1717426117662,2.2585,163.83,163.7,6.7805]
[1717426117865,0.2,163.84,163.7,6.7805]
[1717426118171,2.2584,163.83,163.77,2.5126]
[1717426118483,2.4583,163.84,163.77,2.2592]
[1717426118683,0.2,163.84,163.77,2.2592]
[1717426119097,0.2,163.84,163.76,2.5126]
[1717426119414,0.2,163.84,163.76,7.0313]
[1717426119617,0.2,163.84,163.81,2.2586]
[1717426119914,0.2,163.84,163.82,2.2585]
[1717426120075,0.2,163.84,163.83,19.1627]
[1717426120270,0.2,163.84,163.78,16.6501]
[1717426120500,0.2,163.84,163.78,21.4217]
[1717426120703,2.4583,163.84,163.78,21.4217]
[1717426121080,0.2,163.84,163.8,2.2588]
[1717426121292,0.2,163.84,163.81,2.5126]
[1717426121495,0.2,163.84,163.81,4.7713]
[1717426121797,0.2,163.84,163.83,4.771]
[1717426122196,0.2,163.84,163.83,2.5126]
[1717426123183,0.2,163.84,163.8,2.2588]
[1717426123378,0.2,163.84,163.8,4.7714]
[1717426123582,0.2,163.84,163.81,2.5126]
[1717426123805,0.2,163.84,163.81,4.7712]
[1717426124304,0.2,163.84,163.79,15.2939]
[1717426124305,0.2,163.84,163.79,2.2589]
[1717426124491,2.4583,163.84,163.77,4.7718]
[1717426124798,2.4584,163.84,163.78,2.259]
[1717426125002,2.4584,163.84,163.73,4.5194]
[1717426125003,0.2,163.84,163.73,2.5126]
[1717426125326,4.5172,163.82,163.73,2.5126]
[1717426125608,60.0,163.83,163.73,2.5126]
[1717426125813,60.0,163.83,163.73,4.7723]
[1717426126107,60.0,163.83,163.74,2.2596]
[1717426126313,2.2586,163.82,163.75,2.2595]
[1717426126494,60.0,163.83,163.75,2.2595]
[1717426126921,0.2,163.84,163.76,2.2593]
[1717426127223,0.2,163.84,163.75,2.2595]
[1717426127393,2.2586,163.82,163.75,2.2595]
[1717426128107,2.2584,163.83,163.73,2.5126]
[1717426128611,2.2585,163.82,163.74,2.2595]
[1717426128818,2.2585,163.82,163.75,2.2595]
[1717426129123,2.4584,163.84,163.76,2.2593]
[1717426129421,2.2584,163.83,163.76,2.2593]
[1717426129795,0.2,163.84,163.73,2.5126]
[1717426130209,0.2,163.84,163.78,2.259]
[1717426130407,2.2584,163.83,163.73,2.5126]
[1717426130611,2.2584,163.83,163.76,2.2593]
[1717426130895,2.2584,163.83,163.77,2.2592]
[1717426131205,2.4583,163.84,163.78,2.259]
[1717426131404,2.4583,163.84,163.73,2.5126]
[1717426131405,0.2,163.84,163.79,2.2589]
[1717426131707,0.2,163.84,163.74,4.5192]
[1717426131918,0.2,163.84,163.76,4.5187]
[1717426132303,0.2,163.84,163.79,2.2589]
[1717426132905,0.2,163.84,163.8,2.2588]
[1717426133324,0.2,163.84,163.81,4.7712]
[1717426133796,0.2,163.84,163.81,2.2586]
[1717426134127,0.2,163.84,163.82,2.2585]
[1717426134423,0.2,163.84,163.83,2.2584]
[1717426134612,0.2,163.84,163.82,2.5126]
[1717426135015,0.2,163.84,163.79,2.2588]
[1717426135197,0.2,163.84,163.78,7.0307]
[1717426135402,0.2,163.84,163.81,4.7712]
[1717426135599,2.4583,163.84,163.78,2.2591]
[1717426135925,2.4583,163.84,163.77,2.2592]
[1717426136140,2.2584,163.83,163.77,2.2592]
[1717426136433,0.2,163.84,163.79,2.2589]
[1717426136725,0.2,163.84,163.76,7.0311]
[1717426136914,0.2,163.84,163.8,2.2587]
[1717426137115,0.2,163.84,163.76,7.0311]
[1717426137116,0.2,163.84,163.81,2.2586]
[1717426137826,0.2,163.84,163.76,2.5126]
[1717426138002,0.2,163.84,163.82,2.2585]
[1717426138198,0.2,163.84,163.78,4.5182]
[1717426138411,0.2,163.84,163.8,2.2587]
[1717426140324,0.2,163.84,163.79,2.2588]
[1717426140527,0.2,163.84,163.78,4.5181]
[1717426140721,0.2,163.84,163.79,4.6879]
[1717426141029,0.2,163.84,163.82,2.2584]
[1717426141326,0.2,163.84,163.83,2.2584]
[1717426142041,0.2,163.84,163.77,0.17]
[1717426142042,0.2,163.84,163.81,2.2585]
[1717426142249,0.2,163.84,163.75,11.5507]
[1717426142544,2.4583,163.84,163.78,2.259]
[1717426143023,0.2,163.84,163.75,2.5126]
[1717426143228,0.2,163.84,163.73,4.5193]
[1717426143637,2.2586,163.82,163.76,2.2592]
[1717426143811,0.2,163.84,163.78,2.2591]
[1717426143812,2.4583,163.84,163.78,2.2591]
[1717426144302,2.4583,163.84,163.71,18.9604]
[1717426144303,0.2,163.84,163.71,18.9604]
[1717426144509,0.2,163.84,163.81,2.2586]
[1717426144807,0.2,163.84,163.79,2.2588]
[1717426145207,2.4583,163.84,163.78,2.259]
[1717426145402,2.4583,163.84,163.76,20.0]
[1717426145636,2.4583,163.84,163.77,2.2592]
[1717426145839,0.2,163.84,163.76,2.2592]
[1717426146047,2.2585,163.82,163.76,2.2592]
[1717426146342,0.2,163.84,163.73,6.7794]
[1717426146522,2.4583,163.84,163.78,2.2591]
[1717426146910,0.2,163.84,163.79,2.2589]
[1717426147326,0.2,163.84,163.74,20.0]
[1717426147538,60.2,163.84,163.72,20.0]
[1717426147913,0.2,163.84,163.72,24.5196]
[1717426148123,2.2585,163.83,163.77,2.2592]
[1717426148416,0.2,163.84,163.78,2.259]
[1717426148637,2.2584,163.83,163.77,2.2592]
[1717426149157,0.2,163.84,163.78,2.259]
[1717426149158,2.4583,163.84,163.78,2.259]
[1717426149558,0.2,163.84,163.78,2.259]
[1717426149725,2.4583,163.84,163.78,2.259]
[1717426150369,2.2584,163.83,163.77,2.2592]
[1717426150549,2.2587,163.81,163.75,2.2595]
[1717426150753,2.2586,163.82,163.75,2.2594]
[1717426150954,2.2584,163.83,163.76,2.2594]
[1717426151139,2.2584,163.83,163.77,2.2592]
[1717426151350,0.2,163.84,163.76,2.2593]
[1717426151351,2.2585,163.82,163.76,2.2593]
[1717426151655,2.2587,163.81,163.75,2.2594]
[1717426152050,60.0,163.82,163.73,2.2596]
[1717426152051,2.259,163.79,163.73,2.2596]
[1717426152234,2.2591,163.78,163.72,2.2599]
[1717426152588,6.3149,163.79,163.71,2.26]
[1717426152736,2.2594,163.76,163.7,2.2601]
[1717426153062,6.3149,163.79,163.67,11.555]
[1717426153063,6.3149,163.79,163.67,16.076]
[1717426153237,8.5739,163.79,163.73,2.2597]
[1717426153433,6.3149,163.79,163.67,7.0338]
[1717426153750,6.3149,163.79,163.68,2.2604]
[1717426153751,2.2595,163.75,163.68,2.2604]
[1717426153935,2.2595,163.75,163.69,2.2603]
[1717426156235,60.17,163.76,163.67,2.2605]
[1717426156449,2.2598,163.73,163.67,2.2605]
[1717426156660,2.2597,163.74,163.67,2.2605]
[1717426156862,2.2597,163.74,163.68,2.2604]
[1717426157169,2.2597,163.74,163.64,4.5218]
[1717426157170,2.2598,163.73,163.67,2.2606]
[1717426158272,2.2598,163.73,163.66,2.2607]
[1717426158647,2.26,163.72,163.66,2.2607]
[1717426158871,2.2596,163.74,163.67,2.2605]
[1717426159050,2.2596,163.74,163.68,2.2604]
[1717426159253,2.2596,163.74,163.67,2.2606]
[1717426159566,2.2598,163.73,163.67,2.2606]
[1717426159871,2.26,163.72,163.66,2.2607]
[1717426160101,2.2601,163.71,163.65,2.2609]
[1717426160260,2.2602,163.7,163.64,2.261]
[1717426160460,2.2603,163.69,163.63,2.2611]
[1717426160939,2.2602,163.7,163.64,2.261]
[1717426161759,2.2604,163.69,163.63,2.2611]
[1717426162643,2.2605,163.68,163.62,2.2613]
[1717426162864,2.2604,163.69,163.62,2.2613]
[1717426163166,2.2602,163.7,163.64,2.261]
[1717426163368,6.3507,163.71,163.66,2.2607]
[1717426163554,2.2602,163.7,163.61,4.5228]
[1717426163756,2.2602,163.7,163.64,2.261]
[1717426163962,6.3507,163.71,163.61,4.5228]
[1717426164165,6.3507,163.71,163.62,4.8626]
[1717426164362,6.3507,163.71,163.66,2.2607]
[1717426164755,6.3507,163.71,163.65,2.2608]
[1717426165149,8.6108,163.71,163.65,2.2608]
[1717426165765,6.3507,163.71,163.65,2.2608]
[1717426166159,6.3507,163.71,163.66,2.2607]
[1717426166368,6.3507,163.71,163.63,4.5223]
[1717426166572,15.8331,163.73,163.67,2.2606]